[Event "1000GM Schev-G2 March 2024"]
[Site "Santa Clara"]
[Date "2024.03.10"]
[Round "4.4"]
[White "Iinuma, Paul Y"]
[Black "Filgueiras, Nathan Felipe"]
[Result "1-0"]
[ECO "E32"]
[WhiteElo "2141"]
[BlackElo "2316"]
[Annotator "RC"]
[PlyCount "103"]
[EventDate "2024.03.06"]
[EventType "schev"]
[EventCountry "USA"]
[SourceTitle "playchess.com"]
[Source "ChessBase"]
[SourceQuality "1"]
[TimeControl "5400+30"]

1. d4 {[%emt 0:12:26]} Nf6 {[%emt 0:00:12]} 2. c4 {[%emt 0:00:09]} e6 {[%emt 0:00:08]} 3. Nc3 {[%emt 0:00:19]} Bb4 {[%emt 0:00:06]} 4. Qc2 {[%emt 0:00:06]} O-O {[%emt 0:00:08]} 5. e4 {[%emt 0:00:03]} d5 {[%emt 0:01:08]} 6. e5 {[%emt 0:00:29]} Ne4 {[%emt 0:00:27]} 7. Bd3 {[%emt 0:00:08]} c5 {[%emt 0:01:24]} 8. Nge2 {[%emt 0:00:16]} cxd4 {[%emt 0:04:59]} 9. Nxd4 {[%emt 0:00:02]} Nd7 {[%emt 0:00:09]} 10. Bf4 {[%emt 0:00:01]} Ndc5 {[%emt 0:03:52]} 11. O-O {[%emt 0:00:12]} Bxc3 {[%emt 0:01:19]} 12. bxc3 {[%emt 0:00:10]} b6 {[%emt 0:00:46]} 13. Be2 {[%emt 0:04:04]} h6 {[%emt 0:15:02]} 14. f3 {[%emt 0:10:56]} Ng5 {[%emt 0:00:31]} 15. Rad1 {[%emt 0:05:11]} Qe7 {[%emt 0:07:30]} 16. Nc6 {[%emt 0:08:57]} Qb7 {[%emt 0:10:48]} 17. cxd5 {[%emt 0:01:35]} exd5 {[%emt 0:00:10]} 18. Nb4 {[%emt 0:00:06]} Rd8 {[%emt 0:03:04]} 19. c4 {[%emt 0:02:13]} Be6 {[%emt 0:02:58]} 20. Bxg5 {[%emt 0:05:45]} hxg5 {[%emt 0:01:33]} 21. f4 {[%emt 0:00:02]} Rac8 {[%emt 0:23:40]} 22. f5 {[%emt 0:14:50]} Bd7 {[%emt 0:00:24]} 23. Nxd5 {[%emt 0:00:32]} Ba4 {[%emt 0:01:19]} 24. Qc1 {[%emt 0:01:11]} Bxd1 {[%emt 0:01:01]} 25. Rxd1 {[%emt 0:00:01]} Re8 {[%emt 0:04:37]} 26. Qxg5 {[%emt 0:01:44]} Rxe5 {[%emt 0:00:42]} 27. Bf3 {[%emt 0:00:50]} Qb8 {[%emt 0:06:14]} 28. Nf6+ {[%emt 0:01:29]} Kf8 {[%emt 0:00:02]} 29. Nh7+ {[%emt 0:03:48]} Kg8 {[%emt 0:00:03]} 30. Nf6+ {[%emt 0:00:05]} Kf8 {[%emt 0:00:06]} 31. Nh5 {[%emt 0:00:03]} Ne6 {[%emt 0:01:01]} 32. Qg4 {[%emt 0:01:10]} g6 {[%emt 0:02:18]} 33. Nf6 {[%emt 0:00:46]} Rd8 {[%emt 0:02:20]} 34. fxe6 {[%emt 0:01:59]} Rxd1+ {[%emt 0:03:55]} 35. Bxd1 {[%emt 0:00:09]} Re1+ {[%emt 0:00:17]} 36. Kf2 {[%emt 0:00:20]} Rxd1 {[%emt 0:00:12]} 37. Qxd1 {[%emt 0:05:41]} Qf4+ {[%emt 0:00:01]} 38. Qf3 {[%emt 0:00:08]} Qd4+ {[%emt 0:05:04]} 39. Kg3 {[%emt 0:03:00]} Qe5+ {[%emt 0:00:00]} 40. Qf4 {[%emt 0:00:51]} Qe1+ {[%emt 0:00:00]} 41. Kh3 {[%emt 0:02:58]} Qxe6+ {[%emt 0:00:00]} 42. g4 {[%emt 0:00:08]} b5 {[%emt 0:00:00]} 43. c5 {[%emt 0:10:39]} Qxa2 {[%emt 0:00:00]} 44. c6 {[%emt 0:00:26]} Qb3+ {[%emt 0:00:23]} 45. Kh4 {[%emt 0:00:42]} Qc3 {[%emt 0:00:07]} 46. c7 {[%emt 0:00:45]} Kg7 {[%emt 0:02:04]} 47. Ne8+ {[%emt 0:02:26]} Kg8 {[%emt 0:00:29]} 48. Nf6+ {[%emt 0:02:32]} Kg7 {[%emt 0:00:15]} 49. g5 {[%emt 0:00:16]} b4 {[%emt 0:01:08]} 50. Ng4 {[%emt 0:00:38]} Kf8 {[%emt 0:00:58]} 51. Qe5 {[%emt 0:00:36]} Qc1 {[%emt 0:00:34]} 52. c8=Q+ {[%emt 0:00:45]} 1-0

[Event "1000GM Schev-G2 March 2024"]
[Site "Santa Clara"]
[Date "2024.03.10"]
[Round "4.5"]
[White "Garcia Guerrero, Isaac Antonio"]
[Black "Zhou, Ruoyu"]
[Result "1-0"]
[ECO "D55"]
[WhiteElo "2300"]
[BlackElo "2168"]
[Annotator "TA"]
[PlyCount "101"]
[EventDate "2024.03.06"]
[EventType "schev"]
[EventCountry "USA"]
[SourceTitle "playchess.com"]
[Source "ChessBase"]
[SourceQuality "1"]
[TimeControl "5400+30"]

{[%evp 15,101,10,26,3,33,31,29,0,29,34,22,26,25,28,55,48,130,150,152,137,162,170,167,164,155,164,149,131,142,132,144,130,137,137,134,125,170,160,175,155,161,144,179,164,214,215,213,135,262,235,233,223,329,345,343,352,433,434,422,422,380,379,615,618,576,576,877,865,770,628,29974,29975,29975,29976,29976,0,29977,29978,29978,29979,29979,29980,29980,29981,29981,29982,29981,29982]} 1. d4 {[%emt 0:00:16]} d5 {[%emt 0:00:08]} 2. c4 {[%emt 0:00:30]} e6 {[%emt 0:00:09]} 3. Nc3 {[%emt 0:00:19]} Be7 {[%emt 0:00:12]} 4. Nf3 {[%emt 0:00:22]} Nf6 {[%emt 0:00:21]} 5. Bg5 {[%emt 0:00:38]} h6 {[%emt 0:00:23]} 6. Bxf6 {[%emt 0:00:23]} Bxf6 {[%emt 0:00:21]} 7. e3 {[%emt 0:00:12]} O-O {[%emt 0:01:32]} 8. Qd2 {[%emt 0:00:10]} a6 {[%emt 0:09:40]} 9. Rc1 {[%emt 0:12:08]} b6 {[%emt 0:02:51]} 10. cxd5 {[%emt 0:11:02]} exd5 {[%emt 0:00:07]} 11. g3 {[%emt 0:00:06] White has an edge.} Bb7 {[%emt 0:04:48]} 12. Bg2 {[%emt 0:00:21]} Re8 {[%emt 0:01:19]} 13. O-O {[%emt 0:00:41]} Nd7 {[%emt 0:00:40][%cal Bb8d7,Bd7f8,Bf8e6,Be6c5][%mdl 32] Against Ne5} 14. Rfd1 {[%emt 0:11:14]} Nf8 {[%emt 0:04:58]} 15. Ne5 {[%emt 0:06:26]} c5 {[%emt 0:04:14]} (15... Ne6 $14) 16. Ng4 $16 {[%emt 0:05:26] White is more active.} Ne6 {[%emt 0:25:56]} 17. Nxf6+ {[%emt 0:13:18]} Qxf6 {[%emt 0:00:18]} 18. dxc5 {[%emt 0:00:43]} (18. Bxd5 Bxd5 19. Nxd5 Qf3) 18... Nxc5 {[%emt 0:03:53]} 19. Nxd5 {[%emt 0:02:43]} Bxd5 {[%emt 0:00:15]} 20. Bxd5 {[%emt 0:00:16][%cal Ob2b4] [#] aiming for b4!} Rad8 {[%emt 0:00:19]} 21. Qc2 {[%emt 0:05:23]} Qe5 {[%emt 0:03:35]} 22. Bg2 {[%emt 0:01:39]} a5 {[%emt 0:00:54]} 23. b3 {[%emt 0:00:24]} Rxd1+ {[%emt 0:01:35]} 24. Rxd1 {[%emt 0:00:12]} Qf6 {[%emt 0:00:58]} 25. a3 {[%emt 0:06:23][%cal Ba2a3,Ba3b4][%mdl 32]} Qe7 {[%emt 0:02:44]} 26. b4 {[%emt 0:02:31]} axb4 {[%emt 0:01:38]} 27. axb4 {[%emt 0:00:06]} Ne6 {[%emt 0:00:48]} 28. Qc4 {[%emt 0:00:17] Black is weak on the light squares} Rb8 {[%emt 0:04:44]} 29. Bd5 {[%emt 0:01:23]} b5 {[%emt 0:01:20]} (29... Rd8 $142 30. Rd3 Rd6) 30. Qe4 $18 {[%emt 0:01:44]} Rd8 {[%emt 0:01:33]} 31. Rc1 {[%emt 0:00:47]} Qf6 {[%emt 0:03:31]} (31... Qd7 $16 32. Rd1 Kf8) 32. Bxe6 {[%emt 0:01:34]} fxe6 {[%emt 0:00:30][%mdl 4096] Endgame. KQR-KQR} 33. Rc6 {[%emt 0:00:46]} Qa1+ {[%emt 0:02:28]} (33... Kf7 $142 34. Rc5 Rd2) 34. Kg2 {[%emt 0:00:02]} e5 {[%emt 0:01:35]} 35. Rc7 {[%emt 0:01:31][%cal Bc6c7,Bc7e7,Be7e6,Be6d6][%mdl 32]} Kh8 {[%emt 0:03:03]} 36. Re7 {[%emt 0:01:45]} Rg8 {[%emt 0:01:11]} 37. Qxe5 {[%emt 0:00:41]} Qa8+ {[%emt 0:00:15]} 38. e4 {[%emt 0:00:21]} Qd8 $2 {[%emt 0:00:15]} (38... Qa4 39. Qd4 Qa8) 39. Re6 {[%emt 0:01:21]} Qd2 {[%emt 0:00:12]} 40. Rd6 {[%emt 0:00:57]} Qc1 {[%emt 0:00:14]} 41. Qxb5 {[%emt 0:02:13]} Rf8 {[%emt 0:01:04]} 42. Qe5 {[%emt 0:00:43]} Qe1 {[%emt 0:02:03]} 43. Rxh6+ {[%emt 0:00:48]} Kg8 {[%emt 0:00:05]} 44. Qe6+ {[%emt 0:00:22]} Rf7 {[%emt 0:00:13]} 45. Qe8+ {[%emt 0:00:07]} Rf8 {[%emt 0:00:07] [#]} 46. Rh8+ $3 {[%emt 0:00:06][%mdl 512] White mates.} Kxh8 {[%emt 0:00:07]} 47. Qxf8+ {[%emt 0:00:06]} Kh7 {[%emt 0:00:09]} 48. Qf5+ {[%emt 0:00:15]} g6 {[%emt 0:00:06]} 49. Qd7+ {[%emt 0:01:32]} Kh6 {[%emt 0:00:08]} 50. Qd4 {[%emt 0:00:38]} g5 {[%emt 0:00:13]} 51. b5 {[%emt 0:01:15] Weighted Error Value: White=0.26 (precise) /Black=0.52.  Mistake:       	---       	Black=5      Inaccurate:     	White=2     	Black=4      OK:         	White=16    	Black=8      Best:        	White=3     	---} 1-0

[Event "1000GM Schev-G2 March 2024"]
[Site "Santa Clara"]
[Date "2024.03.11"]
[Round "5.1"]
[White "Tang, Dylan"]
[Black "Figueredo Losada, Leonel"]
[Result "1-0"]
[ECO "C76"]
[WhiteElo "2152"]
[BlackElo "2325"]
[Annotator "TA"]
[PlyCount "93"]
[EventDate "2024.03.06"]
[EventType "schev"]
[EventCountry "USA"]
[SourceTitle "playchess.com"]
[Source "ChessBase"]
[SourceQuality "1"]
[TimeControl "5400+30"]

{[%evp 15,93,28,28,15,28,17,33,22,31,8,0,0,24,-10,51,44,59,33,94,119,126,-15,-23,0,-6,8,25,-60,0,-17,-13,-9,-3,-17,58,59,58,41,33,33,54,56,55,42,114,110,109,52,146,139,160,164,230,227,322,217,193,141,168,125,93,104,88,0,494,455,572,586,994,792,29983,10428,29984,29985,29988,29989,29992,29993,29993,29990]} 1. e4 {[%emt 0:00:02]} e5 {[%emt 0:00:38]} 2. Nf3 {[%emt 0:00:09]} Nc6 {[%emt 0:00:03]} 3. Bb5 {[%emt 0:00:07]} a6 {[%emt 0:00:05]} 4. Ba4 {[%emt 0:00:04]} d6 {[%emt 0:00:04]} 5. O-O {[%emt 0:00:10]} Bd7 {[%emt 0:00:04]} 6. c3 {[%emt 0:00:04]} g6 {[%emt 0:00:05]} 7. d4 {[%emt 0:00:07]} Bg7 {[%emt 0:00:05]} 8. d5 {[%emt 0:00:35]} Nce7 {[%emt 0:00:11]} 9. c4 {[%emt 0:00:30]} h6 {[%emt 0:02:58]} 10. Nc3 {[%emt 0:02:32][%cal Oc4c5]} f5 {[%emt 0:00:07]} 11. Nd2 {[%emt 0:07:32] White is slightly better.} Nf6 {[%emt 0:00:52]} 12. Rb1 {[%emt 0:05:08]} O-O {[%emt 0:01:52]} 13. b4 {[%emt 0:01:45]} Bc8 {[%emt 0:19:48]} 14. f3 {[%emt 0:08:55]} f4 {[%emt 0:00:23]} (14... c6 $11) 15. c5 $14 {[%emt 0:01:01]} g5 {[%emt 0:00:30]} 16. Nc4 {[%emt 0:08:27]} b5 {[%emt 0:00:41]} (16... Ng6 $14) 17. cxb6 $16 {[%emt 0:00:09]} cxb6 {[%emt 0:00:02] And now ...b5 would win.} 18. Bc6 {[%emt 0:03:30]} (18. b5 $1 $16) 18... Nxc6 $11 {[%emt 0:06:04]} 19. dxc6 {[%emt 0:00:14]} b5 {[%emt 0:08:35]} 20. Na5 {[%emt 0:00:25]} Be6 {[%emt 0:01:55]} 21. Nd5 {[%emt 0:02:47]} (21. Rb2 $11) 21... Bxd5 {[%emt 0:06:53]} 22. exd5 {[%emt 0:00:09]} Qb6+ $1 {[%emt 0:00:01]} 23. Kh1 {[%emt 0:01:00]} Qd4 $1 {[%emt 0:00:03]} 24. Bb2 {[%emt 0:02:40]} (24. Qxd4 $2 exd4 25. g3 Nxd5 26. gxf4 Nxf4 $19 (26... Nc3 27. Rb2 $17)) 24... Qxd1 {[%emt 0:13:30]} (24... Qxb4 $2 25. Nb7 $18) (24... Qxd5 $11 25. a4 bxa4) 25. Rfxd1 $14 {[%emt 0:00:23][%cal Ob2e5]} (25. Rbxd1 Rfe8 26. g3 Bf8 $16) 25... Ne8 {[%emt 0:00:38]} 26. Rbc1 {[%emt 0:01:25]} Kf7 {[%emt 0:06:55]} 27. Nb7 $36 {[%emt 0:02:23][%mdl 2048] White is pushing.} Ke7 {[%emt 0:00:26]} 28. Bc3 {[%emt 0:00:10]} Bf6 {[%emt 0:03:45]} 29. Be1 {[%emt 0:02:47]} Kf7 {[%emt 0:01:20] [#]} (29... h5 $14) 30. a4 $1 $16 {[%emt 0:03:20][%mdl 512]} bxa4 {[%emt 0:00:45]} 31. Bf2 {[%emt 0:01:21]} (31. Ra1 $16 Be7 32. Rxa4) 31... Ke7 {[%emt 0:04:02]} (31... Bd8 $14) 32. Rc2 {[%emt 0:02:59][%cal Bc1c2,Bc2a2,Ba2a4][%mdl 32]} g4 {[%emt 0:04:46]} 33. Ra2 {[%emt 0:00:46] White has more active pieces.} gxf3 {[%emt 0:00:36]} (33... e4 $142) 34. gxf3 $18 {[%emt 0:00:13]} Ng7 {[%emt 0:00:07]} (34... e4 {was called for.}) 35. Rxa4 {[%emt 0:02:32]} Nf5 {[%emt 0:00:04]} 36. Rc1 {[%emt 0:08:06]} (36. Rda1 $18 Ne3 37. Bxe3 (37. Rxa6 Rxa6 38. Rxa6 Nxd5 $18) 37... fxe3 38. b5 (38. Rxa6 $2 Rxa6 39. Rb1 e2 $19) 38... axb5 39. Rxa8 Rxa8 40. Rxa8) 36... Rg8 {[%emt 0:04:46]} 37. Na5 {[%emt 0:01:59] Nc4 would now be deadly.} Bh4 {[%emt 0:01:10]} 38. Bxh4+ {[%emt 0:02:53]} Nxh4 {[%emt 0:00:03] [#]} 39. Nc4 {[%emt 0:00:06]} (39. c7 $1 $16 {Threatens to win with Nc4.} Kd7 40. Nc4 Kxc7 41. Ra5 (41. Nxe5+ Kb7 $18)) 39... Nxf3 $2 {[%emt 0:02:18][%mdl 8192]} (39... Rg2 $1 $11 40. Ra3 (40. b5 $2 Re2 $19) 40... Rf2) 40. Nb6 {[%emt 0:00:10]} Rab8 {[%emt 0:09:16]} 41. Rxa6 {[%emt 0:00:46]} e4 {[%emt 0:02:27][%cal Be5e4,Be4e3][%mdl 32]} 42. c7 {[%emt 0:02:19]} Rbc8 {[%emt 0:02:01]} 43. Nxc8+ {[%emt 0:00:27]} Rxc8 {[%emt 0:00:03]} 44. b5 {[%emt 0:00:30][%cal Bb4b5,Bb5b6,Bb6b7][%mdl 32] White mates.} e3 {[%emt 0:00:27]} 45. b6 {[%emt 0:00:06]} Kd7 {[%emt 0:00:36]} 46. b7 {[%emt 0:00:15]} Rxc7 {[%emt 0:00:57] [#]} 47. Rxd6+ $3 {[%emt 0:00:07][%mdl 512] Weighted Error Value: White=0.25 (precise) /Black=0.54.  Loses game:     	---       	Black=1      Mistake:       	White=5     	Black=7      Inaccurate:     	White=3     	Black=3      OK:         	White=7     	Black=6      Best:        	White=3     	Black=3      Strong:       	---       	Black=2      Brilliant:      	White=1     	---} 1-0

[Event "1000GM Schev-G2 March 2024"]
[Site "Santa Clara"]
[Date "2024.03.11"]
[Round "5.2"]
[White "Alarcon Bahamondez, Roberto Ignacio"]
[Black "Pullela, Sricharan"]
[Result "1-0"]
[ECO "A65"]
[WhiteElo "2335"]
[BlackElo "2114"]
[Annotator "TA"]
[PlyCount "63"]
[EventDate "2024.03.06"]
[EventType "schev"]
[EventCountry "USA"]
[SourceTitle "playchess.com"]
[Source "ChessBase"]
[SourceQuality "1"]
[TimeControl "5400+30"]

{[%evp 16,63,44,49,47,52,67,59,60,49,93,58,57,63,79,67,73,79,140,141,147,144,227,210,237,152,169,161,142,100,107,70,66,81,113,121,107,21,16,12,353,349,352,345,908,885,865,866,29989,29990]} 1. d4 {[%emt 0:02:05]} Nf6 {[%emt 0:00:07]} 2. c4 {[%emt 0:00:06]} c5 {[%emt 0:00:21]} 3. d5 {[%emt 0:00:08]} e6 {[%emt 0:00:04]} 4. Nc3 {[%emt 0:00:05]} exd5 {[%emt 0:00:05]} 5. cxd5 {[%emt 0:00:05]} d6 {[%emt 0:00:03]} 6. e4 {[%emt 0:00:06]} g6 {[%emt 0:00:04]} 7. Nge2 {[%emt 0:00:13]} Bg7 {[%emt 0:00:10]} 8. Ng3 {[%emt 0:00:45]} O-O {[%emt 0:00:48]} 9. Be2 {[%emt 0:00:16]} h5 {[%emt 0:01:31]} 10. Bg5 {[%emt 0:02:41]} a6 {[%emt 0:00:07]} 11. a4 {[%emt 0:00:40]} Nbd7 {[%emt 0:00:54] White is slightly better.} 12. O-O {[%emt 0:00:44]} Qe8 {[%emt 0:00:11]} 13. Qd2 {[%emt 0:10:27]} Nh7 {[%emt 0:13:32]} 14. Bh6 {[%emt 0:02:33]} h4 {[%emt 0:05:20]} 15. Bxg7 {[%emt 0:02:09]} Kxg7 {[%emt 0:00:08]} 16. Nh1 {[%emt 0:00:08] White has more active pieces.} h3 {[%emt 0:05:53]} 17. g3 $16 {[%emt 0:02:52]} Nhf6 {[%emt 1:09:42]} 18. f3 {[%emt 0:00:59][%cal Bf2f3,Bf3f4][%mdl 32]} Ne5 {[%emt 0:00:00]} (18... Qe5 $16 {was necessary.}) 19. Nf2 $18 {[%emt 0:02:42]} Bd7 {[%emt 0:00:00]} 20. Rfe1 {[%emt 0:13:02]} b5 {[%emt 0:00:00]} 21. f4 {[%emt 0:03:01]} Neg4 {[%emt 0:02:00]} 22. Bxg4 {[%emt 0:05:09]} (22. Nxh3 $6 b4 $14) 22... Nxg4 {[%emt 0:00:30]} 23. Nxg4 {[%emt 0:04:13]} (23. Nxh3 Rh8 24. Qg2 Qb8 $17 (24... bxa4 25. e5 $15) (24... Nxh2 25. Qxh2 Rxh3 26. Qg2 $11)) 23... Bxg4 {[%emt 0:00:00]} 24. e5 {[%emt 0:04:52]} dxe5 {[%emt 0:00:00]} 25. fxe5 {[%emt 0:01:41]} b4 {[%emt 0:00:00]} 26. Ne4 {[%emt 0:02:32]} (26. Nd1 $16) 26... Qxe5 $11 {[%emt 0:00:00] [#] Threatens to win with ...Rad8.} 27. Nxc5 {[%emt 0:01:07]} Qf5 {[%emt 0:00:00][%mdl 8192] This move loses the game for Black.} (27... Qd6 $1 $11 {and Black is okay.} 28. Qd4+ f6) 28. Qd4+ $18 {[%emt 0:10:36]} Kg8 {[%emt 0:00:00] Black is weak on the dark squares} 29. Ne4 {[%emt 0:05:33]} (29. Qxb4 $2 {is the wrong capture.} Qc2 (29... Qxd5 30. Ne4 $17) 30. Qe4 Qxc5+ $19) 29... Bf3 $2 {[%emt 0:00:00]} (29... f6 30. Rf1 (30. Qxb4 Qxd5 31. Qc5 Qxc5+ 32. Nxc5 Rab8 $17) 30... Bf3) 30. Nf6+ {[%emt 0:00:35]} ({Inferior is} 30. Qxb4 Rae8 (30... Qxd5 $2 {perishes.} 31. Nf6+ Kg7 32. Nxd5 $18) 31. Nf2 Bxd5 $17) 30... Kh8 {[%emt 0:00:00]} 31. Rf1 {[%emt 0:03:36][%cal Og3g4] [#] Black must now prevent g4!} Rfd8 {[%emt 0:00:00]} 32. g4 {[%emt 0:01:31] Weighted Error Value: White=0.18 (very precise) /Black=0.82.  Loses game:     	---       	Black=1      Mistake:       	White=1     	Black=3      Inaccurate:     	White=3     	Black=2      OK:         	White=11    	Black=6      Best:        	White=3     	Black=2} 1-0

[Event "1000GM Schev-G2 March 2024"]
[Site "Santa Clara"]
[Date "2024.03.11"]
[Round "5.3"]
[White "Filgueiras, Nathan Felipe"]
[Black "Chiang, Jacob"]
[Result "0-1"]
[ECO "B67"]
[WhiteElo "2316"]
[BlackElo "2154"]
[Annotator "TA"]
[PlyCount "104"]
[EventDate "2024.03.06"]
[EventType "schev"]
[EventCountry "USA"]
[SourceTitle "playchess.com"]
[Source "ChessBase"]
[SourceQuality "1"]
[TimeControl "5400+30"]

{[%evp 24,104,38,17,147,12,7,4,8,-7,45,-4,16,0,47,25,21,23,20,15,49,45,196,190,199,168,249,177,218,160,267,263,237,279,173,96,240,6,8,12,9,15,20,0,0,0,0,0,90,0,60,-131,-139,-120,-113,-142,-122,-116,-83,-74,-55,-54,-29,-19,-29,-102,-102,-404,-438,-429,-427,-382,-361,-623,-617,-609,-599,-968,-949,-5153,-5135,-29989,-29989]} 1. e4 {[%emt 0:03:17]} c5 {[%emt 0:00:04]} 2. Nf3 {[%emt 0:00:12]} Nc6 {[%emt 0:00:02]} 3. d4 {[%emt 0:00:23]} cxd4 {[%emt 0:00:03]} 4. Nxd4 {[%emt 0:00:06]} Nf6 {[%emt 0:00:03]} 5. Nc3 {[%emt 0:00:06]} d6 {[%emt 0:00:03]} 6. Bg5 {[%emt 0:00:05]} e6 {[%emt 0:00:06]} 7. Qd2 {[%emt 0:00:09]} a6 {[%emt 0:00:22]} 8. O-O-O {[%emt 0:00:39]} Bd7 {[%emt 0:00:30]} 9. f3 {[%emt 0:00:32]} Be7 {[%emt 0:01:08]} 10. h4 {[%emt 0:00:29]} Nxd4 {[%emt 0:01:17]} 11. Qxd4 {[%emt 0:00:03]} Qc7 {[%emt 0:00:11]} 12. Kb1 {[%emt 0:01:20]} b5 {[%emt 0:01:00]} 13. Qd2 {[%emt 0:00:13]} O-O {[%emt 0:01:18]} (13... b4 $11 14. Ne2 Rc8) 14. Bd3 {[%emt 0:01:02]} (14. e5 $1 $16 {[%cal Re5f6]} b4 15. Ne2 (15. exf6 bxc3 16. Qf4 e5 $16) 15... dxe5 16. Bxf6 gxf6 17. Qxd7) 14... b4 $11 {[%emt 0:01:09]} 15. Ne2 {[%emt 0:00:56]} a5 {[%emt 0:00:59]} 16. g4 {[%emt 0:02:18]} Rab8 {[%emt 0:04:34]} (16... Rfc8 $11) 17. Rc1 {[%emt 0:02:29]} (17. h5 $14 {should be considered.}) 17... Bc6 {[%emt 0:04:43]} 18. Nd4 {[%emt 0:00:41]} Ba8 {[%emt 0:02:22]} (18... a4 $1 $11) 19. h5 {[%emt 0:02:34]} Rfc8 {[%emt 0:02:24]} 20. Be3 {[%emt 0:02:37]} Nd7 {[%emt 0:01:49]} 21. g5 {[%emt 0:01:54]} a4 {[%emt 0:05:56]} 22. g6 {[%emt 0:04:45]} Nc5 $2 {[%emt 0:03:04]} (22... a3 $1 $14) 23. gxf7+ $18 {[%emt 0:03:29]} Kxf7 {[%emt 0:01:01]} 24. Bc4 {[%emt 0:02:18]} a3 {[%emt 0:03:44]} (24... d5 $142 25. exd5 Bxd5) 25. b3 {[%emt 0:01:18]} (25. Nb5 Qd7 26. Rhg1 (26. Qxb4 $2 Bc6 $19) 26... axb2 $14 (26... Rxb5 27. Bd4 $16)) 25... Bf6 {[%emt 0:09:10]} 26. Bg5 {[%emt 0:13:33]} (26. Nb5 Rxb5 27. Bxb5 Bxe4 $11) 26... Be5 {[%emt 0:06:18]} (26... Bxg5 $16 27. Qxg5 Qe7 28. Nxe6 Nxe6 29. Qf5+ Ke8 30. Qxe6 (30. Bxe6 Rc5 $16) 30... Qxe6 31. Bxe6 Rc3) 27. h6 $18 {[%emt 0:03:30]} g6 {[%emt 0:00:58]} 28. Rhf1 {[%emt 0:00:11]} d5 {[%emt 0:11:16]} 29. exd5 {[%emt 0:06:34]} ({Better is} 29. Nxe6 $18 Nxe6 30. exd5 Nxg5 31. d6+ Qxc4 32. bxc4) 29... exd5 {[%emt 0:02:12] [#]} (29... Bxd5 $16 {was called for.} 30. Nb5 Qd7) 30. f4 $2 {[%emt 0:13:08]} (30. Nb5 Qd7 31. Qe3 (31. f4 $2 Bb2 $19) 31... Bh8 $11) (30. Bb5 $1 $18) 30... dxc4 {[%emt 0:09:03]} (30... Ne4 {is interesting.} 31. Qe3 dxc4 32. fxe5+ Kg8) 31. fxe5+ {[%emt 0:00:12]} Kg8 {[%emt 0:00:14]} 32. Qe3 {[%emt 0:06:44]} (32. bxc4 $2 Ne4 (32... Qxe5 $2 33. Bf4 $18) 33. Qd3 Nxg5 $19) 32... Ne4 $1 {[%emt 0:02:17]} 33. Bf4 {[%emt 0:04:18]} (33. e6 cxb3 34. Nxb3 (34. cxb3 $2 Qh2 $19) 34... Qe5 $17) 33... Nc3+ {[%emt 0:00:34]} 34. Ka1 {[%emt 0:00:07]} Nd5 $1 {[%emt 0:00:28]} (34... cxb3 $2 35. cxb3 Rb7 36. e6 $18) 35. Qg3 {[%emt 0:01:43]} Nxf4 {[%emt 0:03:02]} (35... cxb3 $11 {remains equal.} 36. cxb3 Qa7) 36. Qxf4 {[%emt 0:00:08]} ({White should try} 36. Rxf4 $16 {e6 is the strong threat.} Qc5 (36... Qxe5 $2 37. Rf8+ Rxf8 38. Qxe5 $18) (36... cxb3 $2 37. axb3 Qc5 38. e6 $16) 37. e6) 36... Bd5 {[%emt 0:07:33]} (36... Bg2 $11 37. Rfe1 cxb3 38. cxb3 Qf7) 37. e6 $2 {[%emt 0:02:27]} (37. Qe3 $1 $14 {stays ahead.}) 37... cxb3 $17 {[%emt 0:00:54]} 38. Qf7+ {[%emt 0:01:04]} (38. cxb3 Qxf4 39. Ne2 Qe5+ (39... Qxh6 40. Rcd1 Qe3 41. Rfe1 Qe5+ 42. Rd4) (39... Qxh6 40. Rcd1 Qe3 41. Rfe1 Qe5+ 42. Rd4)) 38... Qxf7 {[%emt 0:00:28]} 39. exf7+ {[%emt 0:00:05]} Bxf7 {[%emt 0:00:15]} 40. axb3 {[%emt 0:01:02]} Rb7 {[%emt 0:02:35]} 41. Rce1 {[%emt 0:02:08]} Rd7 {[%emt 0:01:35]} 42. Rf4 $1 {[%emt 0:00:30]} Rc3 {[%emt 0:03:42]} 43. Ref1 {[%emt 0:01:56]} Rc5 {[%emt 0:01:48]} 44. Kb1 {[%emt 0:06:09] [#]} (44. Nf3 $1 $11) 44... g5 $1 $17 {[%emt 0:02:11]} 45. Rf5 $2 {[%emt 0:00:41][%mdl 8192]} (45. Rg4 $17) 45... Rxf5 $19 {[%emt 0:00:18]} 46. Nxf5 {[%emt 0:00:02]} Bg6 {[%emt 0:01:08]} 47. Ne3 {[%emt 0:02:34]} Rd2 {[%emt 0:01:13]} 48. Kc1 $2 {[%emt 0:00:19]} (48. Nf5 Rd7 49. Ne3) 48... Re2 $19 {[%emt 0:00:43]} 49. Nd5 {[%emt 0:00:12]} Bxc2 {[%emt 0:03:18]} (49... Rxc2+ $2 50. Kd1 $18) 50. Nf6+ {[%emt 0:09:53]} Kf7 {[%emt 0:00:16]} ({Don't go for} 50... Kh8 $2 51. Nd7 Re8 (51... Bxb3 52. Rf8+ Bg8 53. Nf6 Re1+ 54. Kd2) 52. Kxc2 Rc8+ 53. Kb1 $18) 51. Ne4+ {[%emt 0:00:05]} Ke7 {[%emt 0:00:13]} ({But not} 51... Kg6 $2 52. Rf6+ Kh5 53. Ng3+ Kh4 54. Nxe2 $18) 52. Nc5 {[%emt 0:01:43]} Bg6 {[%emt 0:01:53]} 0-1